bitfinex-derivatives/quotes_BTCF0:USTF0_20251011
["timestamp","ask_amount","ask_price","bid_price","bid_amount"]
[1760180247160,0.05979149,112180.0,112170.0,0.02253]
[1760180247861,0.04705149,112180.0,112170.0,0.02587]
[1760180248063,0.11980478,112180.0,112170.0,0.02587]
[1760180248360,0.09589329,112180.0,112170.0,0.02587]
[1760180248757,0.09689329,112180.0,112170.0,0.02587]
[1760180249764,0.0890735,112170.0,112160.0,0.02253]
[1760180249959,0.1250194,112150.0,112140.0,0.02253]
[1760180250265,0.1250326,112140.0,112130.0,0.02253]
[1760180250562,0.5571363,112140.0,112130.0,0.02253]
[1760180251462,0.1072337,112140.0,112130.0,0.02253]
[1760180251667,0.196331,112140.0,112130.0,0.02253]
[1760180255668,0.557131,112140.0,112130.0,0.02253]
[1760180256363,0.1250432,112120.0,112110.0,0.00986037]
[1760180256563,0.87155042,112120.0,112110.0,0.00986037]
[1760180258168,0.87155042,112120.0,112110.0,0.03239037]
[1760180259364,0.8466432,112120.0,112110.0,0.03239037]
[1760180261069,1.54526466,112120.0,112110.0,0.03239037]
[1760180261969,0.1248321,112110.0,112090.0,0.3743]
[1760180262172,0.1248321,112110.0,112100.0,0.02271]
[1760180262370,0.1248321,112110.0,112100.0,0.04063148]
[1760180263064,1.52321949,112120.0,112100.0,0.04063148]
[1760180263275,0.1248312,112110.0,112100.0,0.04063148]
[1760180264170,0.1248312,112110.0,112100.0,0.04163148]
[1760180264577,0.1248312,112110.0,112100.0,0.04263148]
[1760180266174,0.4856312,112110.0,112100.0,0.04263148]
[1760180266374,0.8856312,112110.0,112100.0,0.01992148]
[1760180267974,0.8856312,112110.0,112100.0,0.04263148]
[1760180268180,0.8856312,112110.0,112100.0,0.01992148]
[1760180275180,0.8856312,112110.0,112100.0,0.04263148]
[1760180275880,0.8856312,112110.0,112100.0,0.01992148]
[1760180278379,0.91123693,112110.0,112100.0,0.01992148]
[1760180280180,0.91123693,112110.0,112100.0,0.04144148]
[1760180283583,0.51123693,112110.0,112100.0,0.04144148]
[1760180286987,0.43541569,112110.0,112100.0,0.04144148]
[1760180287181,0.47031569,112110.0,112100.0,0.04144148]
[1760180293389,0.45641569,112110.0,112100.0,0.05502148]
[1760180293887,0.45641569,112110.0,112100.0,0.04144148]
[1760180293888,0.47031569,112110.0,112100.0,0.04144148]
[1760180300193,0.1101212,112110.0,112100.0,0.05502148]
[1760180301292,0.1240212,112110.0,112100.0,0.05502148]
[1760180301894,0.1240212,112110.0,112100.0,0.04144148]
[1760180305800,0.1240212,112110.0,112100.0,0.05544148]
[1760180309702,0.1101212,112110.0,112100.0,0.05544148]
[1760180310799,0.1101212,112110.0,112100.0,0.41624148]
[1760180317712,0.1233812,112110.0,112100.0,0.41624148]
[1760180324712,0.69871239,112120.0,112100.0,0.41624148]
[1760180324913,0.8347376,112120.0,112110.0,0.0349]
[1760180328322,1.2090076,112120.0,112110.0,0.02165]
[1760180328621,0.1221012,112110.0,112100.0,0.05357148]
[1760180328817,0.1103912,112110.0,112100.0,0.05357148]
[1760180329816,0.1103912,112110.0,112100.0,0.05457148]
[1760180330315,0.1103912,112110.0,112100.0,0.05557148]
[1760180348443,0.02127,112110.0,112100.0,0.05557148]
[1760180348641,0.04685346,112110.0,112100.0,0.05557148]
[1760180349038,0.13597466,112110.0,112100.0,0.05557148]
[1760180350044,0.04685346,112110.0,112100.0,0.05557148]
[1760180351143,0.02558346,112110.0,112100.0,0.05557148]
[1760180351346,0.04792346,112110.0,112100.0,0.05557148]
[1760180359051,0.02558346,112110.0,112100.0,0.05557148]
[1760180359247,0.04792346,112110.0,112100.0,0.05557148]
[1760180361750,0.04792346,112110.0,112100.0,0.41637148]
[1760180361949,0.02558346,112110.0,112100.0,0.41637148]
[1760180362150,0.02558346,112110.0,112100.0,0.50550058]
[1760180363850,0.02558346,112110.0,112100.0,0.41637148]
[1760180364347,0.04701346,112110.0,112100.0,0.41637148]
[1760180368548,0.02558346,112110.0,112100.0,0.50550058]
[1760180368759,0.04701346,112110.0,112100.0,0.41637148]
[1760180369755,0.31211346,112110.0,112100.0,0.41637148]
[1760180373556,0.13613466,112110.0,112100.0,0.41637148]
[1760180375461,0.13613466,112110.0,112100.0,0.05557148]
[1760180386672,0.02558346,112110.0,112100.0,0.05557148]
[1760180386868,0.02558346,112110.0,112100.0,0.50550058]
[1760180387969,0.69871239,112120.0,112110.0,0.03633]
[1760180388272,0.69871239,112120.0,112110.0,0.4862512]
[1760180388472,0.69871239,112120.0,112110.0,0.39713]
[1760180388674,0.69871239,112120.0,112110.0,0.4862512]
[1760180391875,9.093e-05,112120.0,112110.0,0.8862512]
[1760180392875,0.0713037,112140.0,112130.0,0.03633]
[1760180393075,0.4719299,112150.0,112140.0,0.03633]
[1760180395479,1.19203101,112150.0,112140.0,0.03633]
[1760180396080,1.19303101,112150.0,112140.0,0.03633]
[1760180399985,1.21896757,112150.0,112140.0,0.03633]
[1760180401086,1.12987767,112150.0,112140.0,0.03633]
[1760180401286,1.21896707,112150.0,112140.0,0.03633]
[1760180403479,1.23252707,112150.0,112140.0,0.03633]
[1760180404988,1.21896707,112150.0,112140.0,0.03633]
[1760180408492,0.72110111,112150.0,112140.0,0.79713]
[1760180408797,0.81019051,112150.0,112140.0,0.79713]
[1760180409692,0.83322051,112150.0,112140.0,0.79713]
[1760180409894,0.81019051,112150.0,112140.0,0.79713]
[1760180410595,0.80919051,112150.0,112140.0,0.79713]
[1760180411294,0.83222051,112150.0,112140.0,0.79713]
[1760180413294,0.80919051,112150.0,112140.0,0.79713]
[1760180413691,0.83222051,112150.0,112140.0,0.79713]
[1760180414096,0.80919051,112150.0,112140.0,0.79713]
[1760180414295,0.83222051,112150.0,112140.0,0.79713]
[1760180414598,0.83222051,112150.0,112140.0,0.39713]
[1760180414793,1.19302051,112150.0,112140.0,0.03633]
[1760180415094,1.20658051,112150.0,112140.0,0.03633]
[1760180416395,1.23219744,112150.0,112140.0,0.03633]
[1760180417289,1.20658051,112150.0,112140.0,0.03619]
[1760180417494,1.19302051,112150.0,112140.0,0.03619]
[1760180417690,1.20658051,112150.0,112140.0,0.03619]
[1760180417896,1.20658051,112150.0,112140.0,0.02243]
[1760180418293,1.20658051,112150.0,112140.0,0.03619]
[1760180418797,1.19302051,112150.0,112140.0,0.03619]
[1760180419193,1.21864692,112150.0,112140.0,0.03619]
[1760180426395,0.74572752,112150.0,112140.0,0.79699]
[1760180426601,0.72010111,112150.0,112140.0,0.79699]
[1760180426803,0.0890822,112160.0,112150.0,0.0369]
[1760180427002,0.11472264,112160.0,112150.0,0.3977]
[1760180427594,0.13706264,112160.0,112150.0,0.3977]
[1760180428106,0.11472264,112160.0,112150.0,0.3977]
[1760180428509,0.13706264,112160.0,112150.0,0.3977]
[1760180428910,0.85667118,112160.0,112150.0,0.3977]
[1760180429210,0.13706264,112160.0,112150.0,0.3977]
[1760180430910,0.02564044,112160.0,112150.0,0.3977]
[1760180431110,0.04798044,112160.0,112150.0,0.3977]
[1760180431511,0.11472184,112160.0,112150.0,0.3977]
[1760180431809,0.02564044,112160.0,112150.0,0.3977]
[1760180432610,0.72657709,112160.0,112150.0,0.3977]
[1760180432804,0.02564044,112160.0,112150.0,0.3977]
[1760180434306,0.02564044,112160.0,112150.0,1.2386771]
[1760180434508,0.54496209,112180.0,112170.0,0.0369]
[1760180434810,0.57060409,112180.0,112170.0,0.0369]
[1760180435804,0.57160409,112180.0,112170.0,0.0369]
[1760180436004,0.57160409,112180.0,112160.0,0.01369]
[1760180436005,0.98497409,112180.0,112160.0,0.01369]
[1760180436206,0.98497409,112180.0,112160.0,0.0369]
[1760180436207,0.4843535,112170.0,112160.0,0.0369]
[1760180436511,0.4843535,112170.0,112150.0,0.0369]
[1760180436512,0.1231314,112160.0,112150.0,0.0369]
[1760180436811,0.5095734,112160.0,112150.0,0.0369]
[1760180437112,0.5095734,112160.0,112150.0,0.02321]
[1760180439417,0.9095734,112160.0,112150.0,0.02321]
[1760180439718,0.1247994,112150.0,112140.0,0.03697]
[1760180439913,0.5112414,112150.0,112140.0,0.03697]
[1760180440515,1.23098613,112150.0,112140.0,0.03697]
[1760180442414,1.20534413,112150.0,112140.0,0.03697]
[1760180442613,1.21754741,112150.0,112140.0,0.03697]
[1760180443310,1.19197413,112150.0,112140.0,0.03697]
[1760180443510,1.21754733,112150.0,112140.0,0.03697]
[1760180443912,1.23110806,112150.0,112140.0,0.03697]
[1760180444215,1.23110806,112150.0,112140.0,0.02321]
[1760180449420,0.0890974,112140.0,112130.0,0.01369]
[1760180449720,0.4714874,112140.0,112130.0,0.03494]
[1760180450121,1.10213473,112150.0,112140.0,0.03412]
[1760180450321,1.2168293,112150.0,112140.0,0.03412]
[1760180451217,0.8560293,112150.0,112140.0,0.03412]
[1760180451519,0.85602769,112150.0,112140.0,0.03412]
[1760180460130,0.1029217,112140.0,112120.0,0.39627]
[1760180460326,0.02234,112140.0,112130.0,0.39642]
[1760180460526,0.83118153,112150.0,112140.0,0.03562]
[1760180460740,0.85678027,112150.0,112140.0,0.03562]
[1760180461130,0.87060027,112150.0,112140.0,0.03562]
[1760180461936,0.85678027,112150.0,112140.0,0.03562]
[1760180462732,0.87060027,112150.0,112140.0,0.03562]
[1760180463337,0.85678027,112150.0,112140.0,0.03562]
[1760180464735,0.87060027,112150.0,112140.0,0.02178]
[1760180465234,0.0890975,112140.0,112130.0,0.38258]
[1760180465434,0.4860575,112140.0,112130.0,0.02178]
[1760180466338,0.4860575,112140.0,112130.0,0.03562]
[1760180467041,0.4860575,112140.0,112130.0,0.02178]
[1760180467631,0.4860575,112140.0,112130.0,0.03562]
[1760180468139,0.55613514,112140.0,112130.0,0.03562]
[1760180468545,0.56793932,112140.0,112130.0,0.03562]
[1760180470843,0.11804182,112140.0,112130.0,0.39642]
[1760180471038,0.20713972,112140.0,112130.0,0.80948055]
[1760180472832,0.20713972,112140.0,112130.0,0.39642]
[1760180473043,0.20713972,112140.0,112130.0,0.80948055]
[1760180476444,0.18635381,112140.0,112130.0,0.80948055]
[1760180478742,0.16072963,112140.0,112130.0,0.80948055]
[1760180479744,0.15917554,112140.0,112130.0,0.80948055]
[1760180479944,0.16017554,112140.0,112130.0,0.80948055]
[1760180480145,0.18251554,112140.0,112130.0,0.80948055]
[1760180480948,0.18151554,112140.0,112130.0,0.80948055]
[1760180482351,0.15917554,112140.0,112130.0,0.80948055]
[1760180482849,0.16017554,112140.0,112130.0,0.80948055]
[1760180483649,0.15917554,112140.0,112130.0,0.80948055]
[1760180484148,0.18151554,112140.0,112130.0,0.80948055]
[1760180484550,0.07007764,112140.0,112130.0,1.20948055]
[1760180484750,0.0890861,112160.0,112150.0,0.0346]
[1760180484751,0.1104361,112160.0,112150.0,0.0346]
[1760180484949,0.13586326,112160.0,112150.0,0.0346]
[1760180485751,0.13586326,112160.0,112150.0,0.3954]
[1760180486453,0.1104282,112170.0,112160.0,0.0346]
[1760180486652,0.13567198,112170.0,112160.0,0.44766055]
[1760180486853,0.11432198,112170.0,112160.0,0.44766055]
[1760180487151,0.13567198,112170.0,112160.0,0.44766055]
[1760180487753,0.13667198,112170.0,112160.0,0.44766055]
[1760180488154,0.13667198,112170.0,112160.0,0.0346]
[1760180488454,0.49745071,112170.0,112160.0,0.0346]
[1760180490857,0.4722282,112170.0,112160.0,0.0346]
[1760180499874,0.49742413,112170.0,112160.0,0.0346]
[1760180501871,0.49742413,112170.0,112150.0,0.78652055]
[1760180501872,0.01295,112160.0,112150.0,0.01266]
[1760180502068,0.4848226,112160.0,112150.0,0.02223]
[1760180503182,0.8848226,112160.0,112150.0,0.02223]
[1760180503774,0.0890905,112150.0,112140.0,0.01266]
[1760180503979,0.1232105,112150.0,112140.0,0.03489]
[1760180507080,0.1232105,112150.0,112140.0,0.02223]
[1760180511286,0.1232105,112150.0,112140.0,0.03502]
[1760180511586,0.4840105,112150.0,112140.0,0.02223]
[1760180512087,0.4840105,112150.0,112140.0,0.02212808]
[1760180512385,0.4840105,112150.0,112140.0,0.03491808]
[1760180514389,0.4840105,112150.0,112140.0,0.02212808]
[1760180516086,0.4840105,112150.0,112140.0,0.03599808]
[1760180519289,0.4840105,112150.0,112140.0,0.02212808]
[1760180521684,0.4718805,112150.0,112140.0,0.03599808]
[1760180522286,0.4841205,112150.0,112140.0,0.02212808]
[1760180523088,0.1233395,112130.0,112120.0,0.01279]
[1760180523286,0.39502,112130.0,112120.0,0.02309]
[1760180523787,0.4841391,112130.0,112120.0,0.02309]
[1760180525789,0.03422,112110.0,112100.0,0.02346967]
[1760180525993,0.123355,112110.0,112100.0,0.02309]
[1760180526193,0.484155,112110.0,112100.0,0.02309]
[1760180526590,1.21463602,112110.0,112100.0,0.02309]
[1760180526893,0.484155,112110.0,112100.0,0.02309]
[1760180527586,0.484155,112110.0,112100.0,0.04120727]
[1760180529495,0.123367,112100.0,112090.0,0.02309]
[1760180529793,0.484167,112100.0,112090.0,0.04148762]
[1760180530590,0.484167,112100.0,112090.0,0.04248762]
[1760180530888,0.484167,112100.0,112090.0,0.05635762]
[1760180531294,0.484167,112100.0,112090.0,0.04248762]
[1760180531687,0.484167,112100.0,112090.0,0.01939762]
[1760180531889,0.484167,112100.0,112090.0,0.04348762]
[1760180535197,0.484167,112100.0,112090.0,0.04248762]
[1760180535394,0.485167,112100.0,112090.0,0.04148762]
[1760180536396,0.55668868,112100.0,112090.0,0.04148762]
[1760180539199,0.58181462,112100.0,112090.0,0.04148762]
[1760180548820,0.56911462,112100.0,112090.0,0.05525762]
[1760180549520,0.58255462,112100.0,112090.0,0.04148762]
[1760180550420,0.56246865,112100.0,112090.0,0.04148762]
[1760180551123,0.56246865,112100.0,112090.0,0.05525762]
[1760180551424,0.56246865,112100.0,112090.0,0.04148762]
[1760180552722,0.20166865,112100.0,112090.0,0.04148762]
[1760180553621,0.20166865,112100.0,112090.0,0.05525762]
[1760180554014,0.11008762,112100.0,112090.0,0.05525762]
[1760180554219,0.09664762,112100.0,112090.0,1.2568612]
[1760180554625,0.09664762,112100.0,112090.0,1.16771]
[1760180555320,0.11946762,112100.0,112090.0,0.76771]
[1760180556123,0.09664762,112100.0,112090.0,1.16771]
[1760180557624,0.09664762,112100.0,112090.0,1.2568526]
[1760180558327,0.09664762,112100.0,112090.0,1.16771]
[1760180560328,0.07152168,112100.0,112090.0,1.16771]
[1760180560529,0.02282,112100.0,112090.0,1.16771]
[1760180562431,0.02282,112100.0,112090.0,0.76771]
[1760180562933,0.81734777,112110.0,112100.0,0.03549]
[1760180563233,0.84231492,112110.0,112100.0,0.03549]
[1760180564835,0.85575492,112110.0,112100.0,0.03549]
[1760180565034,0.84231492,112110.0,112100.0,0.03549]
[1760180566439,0.81734777,112110.0,112100.0,0.03549]
[1760180566638,0.84220185,112110.0,112100.0,0.03549]
[1760180567238,1.61644185,112110.0,112100.0,0.02263]
[1760180570842,0.1257246,112100.0,112090.0,0.01839762]
[1760180571042,0.51138411,112100.0,112090.0,0.02263]
[1760180571238,0.1257405,112090.0,112080.0,0.02263]
[1760180571543,0.4865405,112090.0,112080.0,0.04043474]
[1760180574343,0.4865405,112090.0,112080.0,0.05386474]
[1760180574537,0.4725805,112090.0,112080.0,0.05386474]
[1760180574740,0.02263,112090.0,112080.0,0.05386474]
[1760180574941,0.54530263,112100.0,112090.0,0.03517]
[1760180575137,0.57016167,112100.0,112090.0,0.03517]
[1760180577848,0.58367167,112100.0,112090.0,0.03517]
[1760180578448,0.58367167,112100.0,112090.0,0.02174]
[1760180579842,0.55881263,112100.0,112090.0,0.02174]
[1760180580445,0.55881263,112100.0,112090.0,0.03517]
[1760180580840,0.46967383,112100.0,112090.0,0.03517]
[1760180581047,0.18449843,112100.0,112090.0,0.44841759]
[1760180581547,0.19800843,112100.0,112090.0,0.44841759]
[1760180582150,0.55880843,112100.0,112090.0,0.44841759]
[1760180582845,0.19800843,112100.0,112090.0,0.44841759]
[1760180586247,0.22286673,112100.0,112090.0,0.44841759]
[1760180587650,0.22286673,112100.0,112090.0,1.20921759]
[1760180587651,0.07238383,112100.0,112090.0,1.20921759]
[1760180587846,0.02298,112100.0,112090.0,0.43517]
[1760180588052,0.1121143,112100.0,112090.0,0.84841759]
[1760180588252,0.1121143,112100.0,112090.0,0.43517]
[1760180588449,0.4864243,112100.0,112090.0,0.02174]
[1760180588654,0.1256323,112090.0,112080.0,0.03954474]
[1760180589253,0.4864323,112090.0,112080.0,0.03954474]
[1760180589448,0.4864323,112090.0,112080.0,0.01780474]
[1760180589754,0.4864323,112090.0,112080.0,0.02174]
[1760180592659,0.1256483,112070.0,112060.0,0.02185545]
[1760180593954,0.1256483,112070.0,112060.0,0.02285545]
[1760180594157,0.1256483,112070.0,112060.0,0.03937634]
[1760180594553,0.1256483,112070.0,112060.0,0.04037634]
[1760180596356,0.1256483,112070.0,112060.0,0.01863634]
[1760180596558,0.1256483,112070.0,112060.0,0.04037634]
[1760180597156,0.4864483,112070.0,112060.0,0.01863634]
[1760180597461,0.8864483,112070.0,112060.0,0.01863634]
[1760180598056,0.91118961,112070.0,112060.0,0.01863634]
[1760180598257,0.8864483,112070.0,112060.0,0.01863634]
[1760180598954,0.8864483,112070.0,112060.0,0.04037634]
[1760180599161,0.8864483,112070.0,112060.0,0.03937634]
[1760180599363,0.8864483,112070.0,112060.0,0.01663634]
[1760180599855,0.8864483,112070.0,112060.0,0.03837634]
[1760180600660,0.91117323,112070.0,112060.0,0.03837634]
[1760180601260,0.91117323,112070.0,112060.0,0.01663634]
[1760180601562,0.91117323,112070.0,112060.0,0.03837634]
[1760180601954,0.91117323,112070.0,112060.0,0.01663634]
[1760180602152,0.91117323,112070.0,112060.0,0.03837634]
[1760180602557,0.91117323,112070.0,112060.0,0.01663634]
[1760180604654,0.91117323,112070.0,112060.0,0.03837634]
[1760180604962,0.91117323,112070.0,112060.0,0.01663634]
[1760180605562,0.91117323,112070.0,112060.0,0.03910634]
[1760180605952,0.91117323,112070.0,112060.0,0.01663634]
[1760180606353,0.91117323,112070.0,112060.0,0.03910634]
[1760180609159,0.91117323,112070.0,112060.0,0.01663634]
[1760180609464,0.91117323,112070.0,112060.0,0.03910634]
[1760180610968,0.51117323,112070.0,112060.0,0.03910634]
[1760180611168,0.04770493,112070.0,112060.0,0.86578393]
[1760180611369,0.42220493,112070.0,112060.0,0.43910634]
[1760180611770,0.42220493,112070.0,112060.0,0.52827284]
[1760180612073,0.42220493,112070.0,112060.0,0.43910634]
[1760180612269,0.42220493,112070.0,112060.0,0.52827284]
[1760180613570,0.51136343,112070.0,112060.0,0.03910634]
[1760180615472,0.51136343,112070.0,112060.0,0.01663634]
[1760180616975,0.1258124,112040.0,112030.0,0.02247]
[1760180617174,0.4866124,112040.0,112030.0,0.02247]
[1760180617377,0.02293,112040.0,112030.0,0.1254903]
[1760180617570,0.1258124,112040.0,112030.0,0.02247]
[1760180617870,0.4866124,112040.0,112030.0,0.02247]
[1760180618176,0.48670508,112040.0,112030.0,0.02247]
[1760180618374,0.48670508,112040.0,112030.0,0.02347]
[1760180618576,0.48670508,112040.0,112030.0,0.02447]
[1760180618772,0.48670508,112040.0,112030.0,0.04114219]
[1760180618976,0.51143611,112040.0,112030.0,0.04114219]
[1760180619178,1.23274363,112040.0,112030.0,0.01867219]
[1760180619376,0.51143611,112040.0,112030.0,0.01867219]
[1760180620380,0.51143611,112040.0,112030.0,0.04114219]
[1760180621884,0.51143611,112040.0,112030.0,0.01867219]
[1760180623179,0.91143611,112040.0,112030.0,0.01867219]
[1760180623686,1.68190948,112040.0,112030.0,0.01867219]
[1760180625085,1.78182797,112040.0,112030.0,0.01867219]
[1760180626581,0.1237986,112020.0,112010.0,0.02277]
[1760180626783,0.3954,112020.0,112010.0,0.1248763]
[1760180626984,0.0346,112020.0,112010.0,0.1248763]
[1760180627291,0.3954,112020.0,112010.0,0.1248763]
[1760180627682,0.3954,112020.0,112010.0,0.03567]
[1760180627884,0.4845983,112020.0,112010.0,0.0414384]
[1760180628186,0.4845983,112020.0,112010.0,0.0434384]
[1760180628988,0.4845983,112020.0,112010.0,0.4434384]
[1760180636189,0.4845983,112020.0,112010.0,0.0434384]
[1760180637098,0.50941439,112020.0,112010.0,0.0434384]
[1760180640196,0.42021609,112020.0,112010.0,0.0434384]
[1760180640500,0.50941439,112020.0,112010.0,0.0434384]
[1760180645299,0.90941439,112020.0,112010.0,0.0206684]
[1760180645800,0.94147983,112020.0,112010.0,0.0206684]
[1760180646106,0.1246942,112000.0,111990.0,7.069e-05]
[1760180646301,0.87122626,112000.0,111990.0,7.069e-05]
[1760180646497,0.87022626,112000.0,111990.0,7.069e-05]
[1760180647196,0.87022626,112000.0,111990.0,0.00107069]
[1760180647597,0.86922626,112000.0,111990.0,0.00107069]
[1760180648401,0.86922626,112000.0,111990.0,0.00207069]
[1760180648801,0.86922626,112000.0,111990.0,0.00107069]
[1760180649002,0.86922626,112000.0,111990.0,0.00207069]
[1760180650401,1.36914475,112000.0,111990.0,0.03084176]
[1760180650603,1.36914475,112000.0,111990.0,0.00207069]
[1760180653595,1.34432866,112000.0,111990.0,0.00207069]
[1760180653801,1.36913734,112000.0,111990.0,0.00207069]
[1760180655601,1.36913734,112000.0,111990.0,0.03128656]
[1760180658505,0.86921885,112000.0,111990.0,0.05373656]
[1760180659906,0.86921885,112000.0,111990.0,0.45373656]
[1760180661598,0.03548,111990.0,111980.0,0.1116768]
[1760180661804,0.42108868,111990.0,111980.0,0.1116768]
[1760180662007,0.51031088,111990.0,111980.0,0.1116768]
[1760180662510,0.51020399,111990.0,111980.0,0.02245]
[1760180662909,0.51020399,111990.0,111980.0,0.02345]
[1760180663110,0.51020399,111990.0,111980.0,0.0527886]
[1760180663410,0.51020399,111990.0,111980.0,0.0537886]
[1760180663812,0.11822863,111990.0,111980.0,0.1430188]
[1760180664504,0.13084863,111990.0,111980.0,0.1430188]
[1760180664702,0.13084863,111990.0,111980.0,0.0537886]
[1760180665812,0.22007083,111990.0,111980.0,0.0537886]
[1760180666710,0.13084863,111990.0,111980.0,0.0537886]
[1760180667912,0.08742472,111990.0,111980.0,0.1560588]
[1760180668114,0.10370772,111990.0,111980.0,0.0668286]
[1760180668615,0.10370772,111990.0,111980.0,0.1560588]
[1760180670416,0.09358684,111990.0,111980.0,0.1560588]
[1760180675922,0.09358684,111990.0,111980.0,0.0668286]
[1760180677023,0.45438684,111990.0,111980.0,0.0668286]
[1760180678426,0.46700684,111990.0,111980.0,0.0668286]
[1760180678926,0.10620684,111990.0,111980.0,0.0668286]
[1760180679931,0.59542904,111990.0,111980.0,0.0537886]
[1760180680227,0.95622904,111990.0,111980.0,0.0537886]
[1760180681230,1.35622904,111990.0,111980.0,0.0313386]
[1760180682222,0.0892381,111970.0,111960.0,0.37363]
[1760180682422,0.1247281,111970.0,111960.0,0.3959]
[1760180682625,0.1247441,111950.0,111940.0,0.0223695]
[1760180682829,0.03549,111930.0,111920.0,0.38307]
[1760180683023,0.4131205,111930.0,111920.0,0.38307]
[1760180683324,0.4121205,111930.0,111920.0,0.38307]
[1760180683727,0.41123121,111930.0,111920.0,0.38307]
[1760180684031,0.00011071,111930.0,111920.0,0.872348]
[1760180684232,0.39998121,111930.0,111920.0,0.81520285]
[1760180684432,0.41323121,111930.0,111920.0,0.81520285]
[1760180684832,0.39998121,111930.0,111920.0,0.90448085]
[1760180685432,1.18760011,111930.0,111920.0,0.81520285]
[1760180685732,0.39998121,111930.0,111920.0,0.90448085]
[1760180686138,0.37774121,111930.0,111920.0,0.90448085]
[1760180686334,0.00011071,111930.0,111920.0,0.90448085]
[1760180687633,0.37405,111960.0,111940.0,0.00742]
[1760180687834,0.42112159,111960.0,111950.0,0.02227]
[1760180688332,1.52999762,111960.0,111950.0,0.02227]
[1760180688634,1.53011127,111960.0,111950.0,0.02227]
[1760180688836,1.69113265,111960.0,111950.0,0.02227]
[1760180689036,1.66630106,111960.0,111950.0,0.02227]
[1760180689232,1.69104038,111960.0,111950.0,0.02227]
[1760180690336,2.09104038,111960.0,111950.0,0.02227]
[1760180690935,2.09204038,111960.0,111950.0,0.02227]
[1760180691334,1.69204038,111960.0,111950.0,0.02227]
[1760180692240,0.03549,111940.0,111930.0,0.4723337]
[1760180692434,0.03549,111940.0,111930.0,0.1115337]
[1760180692634,0.4131205,111940.0,111930.0,0.1115337]
[1760180692834,0.4131205,111940.0,111930.0,0.4723337]
[1760180693035,0.4131205,111940.0,111930.0,0.4797537]
[1760180693439,0.4131205,111940.0,111930.0,0.02227]
[1760180693638,0.5023826,111940.0,111930.0,0.02227]
[1760180693841,0.4131205,111940.0,111930.0,0.02227]
[1760180695038,0.4131205,111940.0,111920.0,0.05162285]
[1760180695039,0.03528,111930.0,111920.0,0.05162285]
[1760180695240,0.4129105,111930.0,111920.0,0.14090085]
[1760180696335,0.4129105,111930.0,111920.0,0.14190085]
[1760180697637,0.4129105,111930.0,111920.0,0.05262285]
[1760180698543,0.5021805,111930.0,111920.0,0.05262285]
[1760180698743,0.4129105,111930.0,111920.0,0.14190085]
[1760180699943,0.4129105,111930.0,111920.0,0.05262285]
[1760180700744,0.4129105,111930.0,111920.0,0.14190085]
[1760180701239,0.3776305,111930.0,111920.0,0.51012085]
[1760180701439,0.4129105,111930.0,111920.0,0.41342285]
[1760180701743,0.4129105,111930.0,111920.0,0.05262285]
[1760180701945,0.5021805,111930.0,111920.0,0.05262285]
[1760180702645,0.4129105,111930.0,111920.0,0.05262285]
[1760180704248,0.5021805,111930.0,111920.0,0.05262285]
[1760180706548,0.8629805,111930.0,111920.0,0.05262285]
[1760180708553,0.8629805,111930.0,111920.0,0.03113285]
[1760180709251,0.88774564,111930.0,111920.0,0.03113285]
[1760180709850,0.8629805,111930.0,111920.0,0.05262285]
[1760180710152,0.88776045,111930.0,111920.0,0.05262285]
[1760180712857,0.79849045,111930.0,111920.0,0.05262285]
[1760180718053,0.79849045,111930.0,111920.0,0.14190085]
[1760180718253,0.42458045,111930.0,111920.0,0.51555085]
[1760180719158,0.43769045,111930.0,111920.0,0.51555085]
[1760180719760,0.43769045,111930.0,111920.0,0.14190085]
[1760180720558,0.43769045,111930.0,111920.0,0.15475085]
[1760180721861,0.02021094,111930.0,111920.0,0.91555085]
[1760180722156,0.38830947,111950.0,111940.0,0.1243621]
[1760180722456,0.41047947,111950.0,111940.0,0.1243621]
[1760180722661,0.15185443,111950.0,111940.0,0.1243621]
[1760180722863,0.01173757,111950.0,111940.0,0.1243621]
[1760180723051,0.03390757,111950.0,111940.0,0.4851621]
[1760180723857,0.80313446,111960.0,111950.0,0.0892541]
[1760180724061,0.80313446,111960.0,111950.0,0.1235241]
[1760180724562,0.80313446,111960.0,111950.0,0.8843241]
[1760180728066,0.82637446,111960.0,111950.0,0.8843241]
[1760180728770,0.82637446,111960.0,111950.0,0.4843241]
[1760180729871,0.80313446,111960.0,111950.0,0.8843241]
[1760180730069,0.80413446,111960.0,111950.0,0.8843241]
[1760180732372,0.80313446,111960.0,111950.0,0.8843241]
[1760180734768,0.80313446,111960.0,111950.0,1.29884968]
[1760180740774,0.80313446,111960.0,111950.0,0.8843241]
[1760180742374,0.80313446,111960.0,111950.0,0.4843241]
[1760180744172,0.82551446,111960.0,111950.0,0.4843241]
[1760180744678,0.80313446,111960.0,111950.0,0.4843241]
[1760180745378,0.82551446,111960.0,111950.0,0.4843241]
[1760180745577,0.80313446,111960.0,111950.0,0.4843241]
[1760180748870,0.82551446,111960.0,111950.0,0.4843241]
[1760180749280,0.07188893,111960.0,111950.0,0.4843241]
[1760180751172,0.09426893,111960.0,111950.0,0.39507]
[1760180751380,0.09426893,111960.0,111950.0,0.4843241]
[1760180752185,0.07188893,111960.0,111950.0,0.4843241]
[1760180754282,0.8000647,111960.0,111950.0,0.4843241]
[1760180755487,0.8213947,111960.0,111950.0,0.4843241]
[1760180755987,0.8000647,111960.0,111950.0,0.4843241]
[1760180760589,0.79995105,111960.0,111950.0,0.4843241]
[1760180760785,0.02133,111970.0,111960.0,0.1252399]
[1760180760991,0.02133,111970.0,111960.0,0.4860399]
[1760180761184,0.3845784,111990.0,111970.0,0.0892349]
[1760180761391,0.0237784,111990.0,111980.0,0.1252302]
[1760180761591,0.0237784,111990.0,111980.0,0.4860302]
[1760180761592,0.0451728,111990.0,111980.0,0.4860302]
[1760180761989,0.0238428,111990.0,111980.0,0.4860302]
[1760180762391,0.74582837,111990.0,111980.0,0.4860302]
[1760180762593,0.0238428,111990.0,111980.0,0.4860302]
[1760180762891,0.09465028,111990.0,111980.0,0.4860302]
[1760180763291,0.09220188,111990.0,111980.0,0.4860302]
[1760180763592,0.11561616,111990.0,111980.0,0.4860302]
[1760180764194,0.09220188,111990.0,111980.0,0.4860302]
[1760180764388,0.09120188,111990.0,111980.0,0.4860302]
[1760180765893,0.06987188,111990.0,111980.0,0.4860302]
[1760180767190,0.78828892,111990.0,111980.0,0.4860302]
[1760180769397,0.78828892,111990.0,111980.0,0.8860302]
[1760180771098,0.06987188,111990.0,111980.0,0.7920828]
[1760180771492,0.06987188,111990.0,111980.0,0.881313]
[1760180776302,0.07458908,111990.0,111980.0,0.881313]
[1760180777500,0.07458908,111990.0,111980.0,0.882313]
[1760180777803,0.07069979,111990.0,111980.0,0.882313]
[1760180779099,0.07069979,111990.0,111980.0,0.881313]
[1760180781202,0.07069979,111990.0,111980.0,1.23404371]